{"text_format":"1","workbook":"xlsx","n_sheets":1,"sheets":["Sheet1"],"not_rendered":{"charts":0,"images":1,"macros":1,"external_links":0,"defined_names":0,"comments":0,"pivot_tables":0},"unopened":[],"bounds":{"document_bytes":16777216,"sheet_cells":100000,"rows_first":2000,"rows_last":500,"rows_between":2000,"halvings":0,"cell_chars":16384,"cell_head_chars":4096},"cells_cut":0,"cells_raw":0,"read":"whole","date_system":"1900"}

{"sheet":"Sheet1","index":0,"n_rows":22,"n_cols":13,"rows_kept":22,"cut":false,"hidden":false,"merged":[]}
["امتحان 1","امتحان 2","امتحان 3","امتحان 4","الاسم",null,null," ",null,null,"","بحث"]
[56,75,47,56,"علاء",null,null,null,"امتحان 1","امتحان 2","سارة","امتحان 4","الاسم"]
[52,74,56,98,"سارة",null,null,null,null,null,null,null,{"$f":"_xlfn._xlws.FILTER(A2:E21,ISNUMBER(SEARCH(K1,E2:E21)),\"\")","v":{"$error":"#VALUE!"}}]
[45,73,25,85,"محمد",null,null,null,null,null,null,null,{"$f":"_xlfn._xlws.FILTER(A3:E22,ISNUMBER(SEARCH(K2,E3:E22)),\"\")","v":{"$error":"#VALUE!"}}]
[62,78,34,52,"أحمد",null,null,null,null,null,null,null,{"$f":"_xlfn._xlws.FILTER(A4:E23,ISNUMBER(SEARCH(K3,E4:E23)),\"\")","v":{"$error":"#VALUE!"}}]
[24,79,46,58,"حسن",null,null,null,null,null,null,null,{"$f":"_xlfn._xlws.FILTER(A5:E24,ISNUMBER(SEARCH(K4,E5:E24)),\"\")","v":{"$error":"#VALUE!"}}]
[47,45,62,84,"ابراهيم",null,null,null,null,null,null,null,{"$f":"_xlfn._xlws.FILTER(A6:E25,ISNUMBER(SEARCH(K5,E6:E25)),\"\")","v":{"$error":"#VALUE!"}}]
[56,43,72,86,"رانيا",null,null,null,null,null,null,null,{"$f":"_xlfn._xlws.FILTER(A7:E26,ISNUMBER(SEARCH(K6,E7:E26)),\"\")","v":{"$error":"#VALUE!"}}]
[25,56,53,82,"ماريان",null,null,null,null,null,null,null,{"$f":"_xlfn._xlws.FILTER(A8:E27,ISNUMBER(SEARCH(K7,E8:E27)),\"\")","v":{"$error":"#VALUE!"}}]
[34,56,54,57,"هند",null,null,null,null,null,null,null,{"$f":"_xlfn._xlws.FILTER(A9:E28,ISNUMBER(SEARCH(K8,E9:E28)),\"\")","v":{"$error":"#VALUE!"}}]
[46,25,53,73,"هبة",null,null,null,null,null,null,null,{"$f":"_xlfn._xlws.FILTER(A10:E29,ISNUMBER(SEARCH(K9,E10:E29)),\"\")","v":{"$error":"#VALUE!"}}]
[62,34,54,74,"علي",null,null,null,null,null,null,null,{"$f":"_xlfn._xlws.FILTER(A11:E30,ISNUMBER(SEARCH(K10,E11:E30)),\"\")","v":{"$error":"#VALUE!"}}]
[72,46,56,75,"شهاب",null,null,null,null,null,null,null,{"$f":"_xlfn._xlws.FILTER(A12:E31,ISNUMBER(SEARCH(K11,E12:E31)),\"\")","v":{"$error":"#VALUE!"}}]
[53,62,57,79,"حسين",null,null,null,null,null,null,null,{"$f":"_xlfn._xlws.FILTER(A13:E32,ISNUMBER(SEARCH(K12,E13:E32)),\"\")","v":{"$error":"#VALUE!"}}]
[54,72,45,73,"ممدوح",null,null,null,null,null,null,null,{"$f":"_xlfn._xlws.FILTER(A14:E33,ISNUMBER(SEARCH(K13,E14:E33)),\"\")","v":{"$error":"#VALUE!"}}]
[56,53,84,76,"صابر",null,null,null,null,null,null,null,{"$f":"_xlfn._xlws.FILTER(A15:E34,ISNUMBER(SEARCH(K14,E15:E34)),\"\")","v":{"$error":"#VALUE!"}}]
[57,54,25,74,"هاني",null,null,null,null,null,null,null,{"$f":"_xlfn._xlws.FILTER(A16:E35,ISNUMBER(SEARCH(K15,E16:E35)),\"\")","v":{"$error":"#VALUE!"}}]
[53,56,64,75,"هشام",null,null,null,null,null,null,null,{"$f":"_xlfn._xlws.FILTER(A17:E36,ISNUMBER(SEARCH(K16,E17:E36)),\"\")","v":{"$error":"#VALUE!"}}]
[52,57,24,73,"وائل",null,null,null,null,null,null,null,{"$f":"_xlfn._xlws.FILTER(A18:E37,ISNUMBER(SEARCH(K17,E18:E37)),\"\")","v":{"$error":"#VALUE!"}}]
[52,45,51,72,"هاشم",null,null,null,null,null,null,null,{"$f":"_xlfn._xlws.FILTER(A19:E38,ISNUMBER(SEARCH(K18,E19:E38)),\"\")","v":{"$error":"#VALUE!"}}]
[54,36,54,64,"عوض",null,null,null,null,null,null,null,{"$f":"_xlfn._xlws.FILTER(A20:E39,ISNUMBER(SEARCH(K19,E20:E39)),\"\")","v":{"$error":"#VALUE!"}}]
[null,null,null,null,null,null,null,null,null,null,null,null,{"$f":"_xlfn._xlws.FILTER(A21:E40,ISNUMBER(SEARCH(K20,E21:E40)),\"\")","v":{"$error":"#VALUE!"}}]